{"text_format":"1","workbook":"xlsx","n_sheets":3,"sheets":["List1","List2","List3"],"not_rendered":{"charts":0,"images":0,"macros":1,"external_links":0,"defined_names":12,"comments":0,"pivot_tables":0},"unopened":[],"bounds":{"document_bytes":16777216,"sheet_cells":100000,"rows_first":2000,"rows_last":500,"rows_between":2000,"halvings":0,"cell_chars":16384,"cell_head_chars":4096},"cells_cut":0,"cells_raw":0,"read":"whole","date_system":"1900"}

{"sheet":"List1","index":0,"n_rows":238,"n_cols":8,"rows_kept":238,"cut":false,"hidden":false,"merged":[[253,0,253,8],[247,0,247,8],[248,0,248,8],[249,0,249,8],[250,0,250,8],[243,0,243,8],[244,0,244,8],[245,0,245,8],[246,0,246,8],[251,0,251,8],[232,0,232,8],[233,0,233,8],[234,0,234,8],[235,0,235,8],[236,0,236,8],[252,0,252,8],[237,0,237,8],[238,0,238,8],[239,0,239,8],[240,0,240,8],[241,0,241,8],[242,0,242,8],[222,0,222,8],[223,0,223,8],[224,0,225,8],[226,0,226,8],[227,0,227,8],[228,0,228,8],[229,0,229,8],[230,0,230,8],[231,0,231,8],[209,1,209,4],[209,6,209,7],[211,4,216,7],[217,4,219,7],[220,0,220,8],[221,0,221,8],[211,0,212,2],[213,0,213,1],[214,0,214,1],[168,0,168,2],[168,3,168,4],[168,5,169,6],[169,0,169,2],[169,3,169,4],[197,0,198,8],[170,0,171,8],[172,0,172,8],[176,0,176,2],[176,3,176,4],[162,0,162,2],[162,3,162,4],[162,5,162,6],[163,0,163,2],[163,3,163,4],[163,6,167,6],[164,0,164,2],[164,3,164,4],[165,3,165,4],[166,3,166,4],[167,3,167,4],[158,3,158,4],[158,5,158,6],[158,7,158,8],[159,3,159,4],[159,5,159,6],[159,7,159,8],[160,3,160,4],[160,5,160,6],[160,7,160,8],[155,0,155,2],[155,3,155,4],[155,5,155,6],[155,7,155,8],[156,3,156,4],[156,5,156,6],[156,7,156,8],[157,3,157,4],[157,5,157,6],[157,7,157,8],[149,0,149,6],[149,7,149,8],[150,7,150,8],[151,0,151,8],[152,0,152,8],[154,0,154,2],[154,3,154,4],[154,5,154,6],[154,7,154,8],[141,1,141,5],[141,7,141,8],[142,7,142,8],[143,6,143,8],[145,0,145,6],[145,7,146,8],[147,0,147,6],[147,7,147,8],[148,0,148,6],[148,7,148,8],[134,1,134,5],[134,7,134,8],[135,1,135,5],[135,7,135,8],[136,1,136,5],[136,7,136,8],[137,1,137,5],[137,7,137,8],[140,1,140,5],[140,7,140,8],[139,1,139,5],[139,7,139,8],[129,1,129,5],[129,7,129,8],[130,1,130,5],[130,7,130,8],[131,1,131,5],[131,7,131,8],[132,1,132,5],[132,7,132,8],[133,1,133,5],[133,7,133,8],[124,1,124,5],[124,7,124,8],[125,1,125,5],[125,7,125,8],[126,1,126,5],[126,7,126,8],[127,1,127,5],[127,7,127,8],[128,1,128,5],[128,7,128,8],[121,1,121,5],[121,7,121,8],[122,1,122,5],[122,7,122,8],[119,1,119,5],[119,7,119,8],[120,1,120,5],[120,7,120,8],[123,1,123,5],[123,7,123,8],[113,7,114,8],[115,0,116,0],[115,1,116,5],[115,6,116,6],[115,7,116,8],[117,0,118,0],[117,1,118,5],[117,6,118,6],[117,7,118,8],[96,0,97,8],[99,0,99,8],[100,0,103,8],[105,0,105,5],[105,6,105,8],[138,1,138,5],[138,7,138,8],[106,1,106,5],[106,7,106,8],[107,0,108,0],[107,1,108,5],[107,6,108,6],[107,7,108,8],[109,0,110,0],[109,1,110,5],[109,6,110,6],[109,7,110,8],[111,0,112,0],[111,1,112,5],[111,6,112,6],[111,7,112,8],[113,0,114,0],[113,1,114,5],[113,6,114,6],[85,2,85,7],[86,1,86,2],[86,4,86,5],[89,2,89,7],[90,1,90,2],[90,4,90,5],[92,2,92,7],[93,1,93,2],[93,4,93,5],[47,1,47,3],[47,5,47,6],[49,0,50,8],[52,2,52,3],[67,0,70,3],[73,0,76,3],[82,2,82,7],[83,1,83,2],[83,4,83,5],[31,4,31,7],[34,0,39,8],[41,2,41,3],[41,4,41,5],[41,6,41,8],[43,5,43,6],[43,7,44,8],[44,5,44,6],[46,4,46,7],[176,5,176,6],[0,0,0,8],[1,0,3,8],[4,0,4,8],[6,3,6,8],[7,3,7,5],[8,1,8,2],[9,1,9,2],[12,3,12,7],[9,6,9,7],[10,6,10,7],[13,2,13,4],[14,2,14,3],[18,2,18,3],[18,4,18,7],[19,2,19,4],[19,6,19,7],[21,4,21,6],[23,0,23,1],[23,2,23,3],[23,4,24,5],[23,6,23,7],[26,3,27,7],[29,2,30,7],[179,0,179,2],[179,3,179,4],[179,5,179,6],[180,0,180,2],[180,3,180,4],[180,5,180,6],[177,0,177,2],[177,3,177,4],[177,5,177,6],[178,0,178,2],[178,3,178,4],[178,5,178,6],[188,0,188,2],[188,3,188,4],[189,0,189,2],[189,3,189,4],[181,0,181,2],[181,3,181,4],[181,5,181,6],[182,0,182,2],[182,3,182,4],[182,5,182,6],[205,0,207,8],[194,0,194,2],[194,3,194,4],[192,0,192,2],[192,3,192,4],[193,0,193,2],[193,3,193,4],[199,0,204,8],[190,0,190,2],[190,3,190,4],[191,0,191,2],[191,3,191,4]]}
["Žádost o poskytnutí dotace"]
["z rozpočtu Odboru umění literatury a knihoven Ministerstva kultury, Maltézské nám. 471/1, 118 11 Praha 1 v rámci výběrového dotačního řízení\nKnihovna 21. století"]
[]
[]
["pro rok 2018"]
[]
["NÁZEV ŽADATELE:"]
["Právní forma:"]
["IČ:"]
["DIČ:",null,null,null,"Je-li žadatel fyzická osoba:","Rodné číslo:"]
[null,null,null,null,null,"Datum narození:"]
["Adresa (sídlo) žadatele:"]
["Ulice a číslo popisné/orientační:"]
["Obec/město:",null,null,null,null,"PSČ:  "]
["Okres:",null,null,null,null,"Kód okresu",{"$f":"VLOOKUP(C15,číselník,2)","v":{"$error":"#N/A"}}]
["Kraj",null,{"$f":"VLOOKUP(C15,číselník,3)","v":{"$error":"#N/A"}},null,null,"Kód kraje",{"$f":"VLOOKUP(C15,číselník,4)","v":{"$error":"#N/A"}}]
[]
["Jméno a příjmení statutárního zástupce/statutárních zástupců:"]
["Oslovení/Jméno:"]
["Kontaktní email:",null,null,null,null,"Tel:  "]
[]
["Bankovní spojení (číslo účtu/kód banky):"]
[]
["Evidenční číslo knihovny:",null,null,null,"Číslo registrace na MV ČR:\n(pouze občanská sdružení)"]
[]
[]
["Adresa krajského finančního úřadu:"]
[]
["ÚDAJE O PROJEKTU"]
["Název projektu:"]
[]
["Vyberte typ projektu, na který požadujete dotaci:"]
["Projektu se účastní dobrovolníci:",null,null,null,"ne"]
["Povinná stručná charakteristika (anotace) projektu (max. 5 řádek, podrobný popis v příloze!)"]
[]
[]
[]
[]
[]
[]
[]
["Termín realizace:",null,null,null,"Místo realizace:  "]
[]
["Požadovaná výše dotace:",null,null,null,null,{"$f":"D164","v":0},null,"Pozn: částky se dopočítají automaticky z údajů uvedených dále"]
["Celkové náklady na projekt:",null,null,null,null,{"$f":"D168","v":0}]
[]
["Osoba odpovídající za projekt:"]
["Email:",null,null,null,"Tel:"]
[]
["Základní údaje o žadateli a knihovně\n(vyplňte všechny pro vás relevantní údaje)"]
[]
[]
["Typ knihovny:",null,null,null,null,"Jiný typ subjektu:"]
[]
["Počet obyvatel obce:"]
["Týdenní počet hodin pro veřejnost:"]
["Počet zaměstnanců (úvazků):"]
["Počet návštěvníků/uživatelů za poslední uzavřený rok (tj. 2015):"]
["Výdaje v Kč na nákup knihovního fondu v posledním uzavřeném roce:"]
[]
["Počet knihovních jednotek:"]
["Přírustek svazků za poslední uzavřený rok:"]
["Počet odebíraných titulů periodik za za poslední uzavřený rok:"]
["Počet výpůjček za poslední uzavřený rok:"]
[]
["Počet registrovaných čtenářů:"]
["Počet registrovaných cizinců a příslušníků menšin:"]
["Jedná se o informativní údaj mj. potřebný u žádostí na nákup knihovního fondu pro národnostní menšiny. Pokud knihovna nemá s ohledem na zákon č. 101/2000 Sb., o ochraně osobních údajů a o změně některých zákonů, ve znění pozdějších předpisů, k dispozici tyto údaje, uvede odhad a připojí komentář v popisu projektu."]
[]
[]
[]
[]
["Počet obsluhovaných zdravotně postižených:"]
["Jedná se o informativní údaj mj. potřebný u žádostí na nákup knihovního fondu pro zrakově postižené. Pokud knihovna nemá s ohledem na zákon č. 101/2000 Sb., o ochraně osobních údajů a o změně některých zákonů, ve znění pozdějších předpisů, k dispozici tyto údaje, uvede odhad a připojí komentář v popisu projektu."]
[]
[]
[]
[]
["Poskytnuté dotace z dotačního řízení Knihovna 21. století"]
["(vyplní pouze subjekt, který v roce 2016 nebo 2017 čerpal dotaci/dotace z dotačního řízení Knihovna 21. století)"]
[]
["Rok 2016"]
["Název projektu:"]
["Žádáno Kč",null,null,"Získáno Kč"]
[]
["Název projektu:"]
["Žádáno Kč",null,null,"Získáno Kč"]
[]
["Rok 2017"]
["Název projektu:"]
["Žádáno Kč",null,null,"Získáno Kč"]
[]
["Název projektu:"]
["Žádáno Kč",null,null,"Získáno Kč"]
[]
[]
["Rozpočet projektu"]
[]
["NEINVESTIČNÍ NÁKLADY"]
["Uveďte přesně jednotlivé neinvestiční náklady a jejich vyčíslení v Kč včetně DPH. U každého nákladu v položce speficikujte, o jaké neinvestiční prostředky se jedná:"]
["1) Materiál - nákup materiálu - např. papíry, výtvarné potřeby, tonery, potřeby na propagaci, ceny do soutěží, audioknihy apod.\n2) Ostatní nákupy - např. cestovní náhrady, účastnické poplatky na konference, programové vybavení do 60 tis. Kč apod.\n3) Služby - nákup služeb - např. lektorská a přednášková činnost, nájemné, služby pošt a telekomunikací, náklady na dopravu apod.\n4) OON - ostatní osobní náklady - tj. dohody o provedení práce, dohody o pracovní činnosti\n5) Ostatní jinde nezařazené; DOBROVOLNÍCI jen ve vlastní spoluúčasti projektu"]
[]
[]
[]
[]
["Náklady",null,null,null,null,null,"Hrazeno (Kč)"]
["Položka (vyberte ze seznamu)","  Specifikace                 ",null,null,null,null,"z dotace","z vlastních prostředků (nebo dalších zdrojů)"]
[]
[]
[]
[]
[]
[]
[]
[]
[]
[]
[]
[]
[]
[]
[]
[]
[]
[]
[]
[]
[]
[]
[]
[]
[]
[]
[]
[]
[]
[]
[]
[]
[]
[]
[]
["Náklady: dotace (před zaokrouhlením)/spoluúčast",null,null,null,null,null,{"$f":"SUM(List3!A32,List3!C32,List3!E32,List3!G32,List3!I32)","v":0},{"$f":"SUM(List3!B32,List3!D32,List3!F32,List3!H32,List3!J32)","v":0}]
["Celkové náklady na projekt",null,null,null,null,null,{"$f":"SUM(G143:I143)","v":0}]
[]
["DALŠÍ ZDROJE KRYTÍ PROJEKTU (i předpokládané)",null,null,null,null,null,null,"Částka v Kč"]
["(Vypište, pokud žádáte o podporu na stejný projekt i u dalších subjektů, předpokládaný výběr vstupného, sponzorské dary.)"]
[]
[]
["Další zdroje krytí projektu celkem:",null,null,null,null,null,null,{"$f":"SUM(H148:I149)","v":0}]
[]
["ROZPOČET PROJEKTU - SHRNUTÍ"]
["(požadovaná neinvestiční dotace je zaokrouhlena na celé tisíce Kč dolů)"]
[]
[null,null,null,"Požadavek na dotaci v Kč",null,"Vlastní prostředky + případné další zdroje krytí projektu",null,"Celkem"]
["Neinvestiční náklady na projekt",null,null,{"$f":"ROUNDDOWN(G143,-3)","v":0},null,{"$f":"SUM(F157:F161)","v":0},null,{"$f":"SUM(D156:G156)","v":0}]
["  *Materiál (nezaokrouhleno)",null,null,{"$f":"List3!A32","v":0},null,{"$f":"List3!B32","v":0},null,0]
["  *Ostatní nákupy (nezaokrouhleno)",null,null,{"$f":"List3!C32","v":0},null,{"$f":"List3!D32","v":0},null,0]
["  *Služby (nezaokrouhleno)",null,null,{"$f":"List3!E32","v":0},null,{"$f":"List3!F32","v":0},null,0]
["  *Ostatní osobní náklady (nezaokrouhleno)",null,null,{"$f":"List3!G32","v":0},null,{"$f":"List3!H32","v":0},null,0]
["  *Ostatní jinde nezařazené (nezaokrouhleno)",null,null,{"$f":"List3!I32","v":0},null,{"$f":"D169+List3!J32","v":0},null,0]
[]
[null,null,null,"Částka",null,"Procentní vyjádření"]
["Požadavek na dotaci celkem",null,null,{"$f":"SUM(D156:E156)","v":0},null,{"$f":"D164/D168","v":{"$error":"#DIV/0!"}},"Pozn: Výše požadované dotace může činit max. 50% celkových nákladů na projekt."]
["Finanční spoluúčast:",null,null,{"$f":"SUM(F156:G156)","v":0},null,{"$f":"D165/D168","v":{"$error":"#DIV/0!"}}]
["  *z toho vlastní prostředky",null,null,{"$f":"D165-D167","v":0},null,{"$f":"D166/D168","v":{"$error":"#DIV/0!"}}]
["  *z toho další zdroje krytí",null,null,{"$f":"SUM(H148:I149)","v":0},null,{"$f":"D167/D168","v":{"$error":"#DIV/0!"}}]
["Celkové náklady projektu",null,null,{"$f":"SUM(D164:E165)","v":0},null,{"$f":"SUM(F164:F165)","v":{"$error":"#DIV/0!"}}]
["Náklady převedené do spoluúčasti (do položky \"ostatní jinde nezařazené\")",null,null,{"$f":"G143-D164","v":0},null,"Vysvětlení řádku viz Návod na vyplnění formuláře (str. 6 formuláře)"]
[]
["Další povinné údaje dle novely zákona č. 218/2000 Sb., publikované pod č. 171/2012 Sb.*\n*uvádějte především vztahy relevantní k danému projektu; v případě nedostatku místa uveďte v samostatné příloze"]
[]
[]
[" Seznam osob, v nichž má žadatel, který je právnickou osobou, podíl ke dni podání žádosti"]
[]
["Název osoby",null,null,"Sídlo osoby",null,"IČ",null,"Výše podílu (%)"]
[]
[]
[]
[]
[]
[]
[]
[]
[" Seznam osob, které mají podíl v žadateli, který je právnickou osobou"]
[" (Nelze-li tyto osoby identifikovat podle výpisu z Obchodního rejstříku.; týká se zejména akciových společností s listinnými akciemi na majitele)"]
[]
["Název osoby/Jméno a příjmení",null,null,"Sídlo/Trvalý pobyt",null,"IČ, je-li přiděleno"]
[]
[]
[]
[]
[]
[]
[]
[]
[]
["Prohlášení žadatele"]
[]
["Žadatel o dotaci potvrzuje správnost uvedených údajů a prohlašuje, že nemá žádné nevyrovnané závazky dle § 2 nařízení vlády č. 288/2002 Sb., kterým se stanoví pravidla poskytování dotací na podporu knihoven, v platném znění, potvrzuje, že údaje uvedené v žádosti jsou správné a pravdivé, prohlašuje, že věnoval zvláštní pozornost tabulkám na straně č. 5 formuláře a že se seznámil s vyhlašovacími podmínkami a akceptuje je."]
[]
[]
[]
[]
[]
["Prohlašuji, že souhlasím se zveřejněním identifikačních údajů o své osobě a o výši poskytnuté dotace, jakož i s případným poskytnutím kopie této žádosti a jejích příloh podle zákona č. 106/1999 Sb., o svobodném přístupu k informacím, ve znění pozdějších předpisů."]
[]
[]
[]
["V ",null,null,null,null,"dne, roku"]
[]
["Oprávněná osoba jedná jako (vyplňuje pouze žadatel, který je právnickou osobou):"]
[]
["  statutární orgán žadatele"]
["  na základě udělené plné moci"]
[]
[]
[null,null,null,null,"na tištěné kopii žádosti zde podpis statutárního orgánu, příp. fyzické osoby, razítko u právnické osoby"]
[]
[]
["(tato strana s pokyny je jen pro informaci, není nutné ji tisknout či jinak přikládat k tištěné verzi projektu)"]
["Návod k vyplnění formuláře"]
["* čísla vyplňujte vždy prostým zadáním číslic (např. 35680) a nikoliv jinak (tedy ne 35.680, 35 tis. Kč apod.)"]
["* již vyplněnou buňku lze nadále upravovat/editovat, případně obsah buňky smazat (klávesa DELETE)"]
["* v Rozpočtu projektu (strana 3) vždy důsledně vyberte Položku z rolovacího seznamu (první sloupec) - její správné přiřazení je klíčové pro výpočty a další automatizované zpracování formuláře. Nebude-li v řádku Položka vybrána, nebude tento řádek započítán do celkových souhrnů! (a je tedy možné jej používat pro doplňkové informace)"]
[]
["* Stručná charakteristika (anotace) projektu - zde vysvětlete podstatu projektu, jeho průběh, stěžejní myšlenku atd. Viz vzorová žádost."]
["* Řádek 169 formuláře (Náklady převedené do spoluúčasti (do položky Ostatní jinde nezařazené)): jedná se o rozdíl vzniklý zakrouhlením požadované dotace na celé tisíce dolů. O tyto částky je automaticky navýšena vlastní finanční spoluúčast na projektu."]
[]
["Jak postupovat při zaslání žádosti o dotaci"]
["1. Vyplňte tento formulář žádosti a soubor si uložte ve formátu *.xls (EXCEL!). Nepřevádějte do jiného formátu."]
["2. Do samostatného souboru \"3-Popis_projektu_K21_2018\" vložte popis projektu a fakultativní přílohy, máte-li nějaké."]
["Tyto dva - a pouze dva - výše uvedené soubory zašlete elektronicky dle pokynů uvedených v Závěrečných ustanoveních podmínek vyhlášení dotace. (ve stručnosti: Soubory zašlete na emailovou adresu: K21@mkcr.cz. Do „Předmětu“ uveďte „K21/2018“ a název žadatele. Velikost emailové zprávy nesmí včetně všech příloh přesáhnout 8MB.)"]
["3. Formulář žádosti i Popis projektu vytiskněte a opatřete nezbytnými podpisy. Verze zaslaná elektronicky se nesmí textově lišit od verze tištěné, jen neobsahuje podpisy a razítka! Tištěné verze budou součástí archivu žádosti, projekt bude hodnocen komisí dle dodaných elektronických kopií."]
["4. Přidejte další požadované dokumenty dle Podmínek vyhlášení dotace, především doklad prokazující oprávnění osoby jednající za žadatele."]
["5. Formulář žádosti opatřený všemi náležitostmi, Popis projektu (včetně případných fakultativních příloh) a další požadované dokumenty zašlete dle pokynů uvedených v Závěrečných ustanoveních podmínek vyhlášení dotace."]
["Projekty zpracované podle výše uvedených podmínek musí být zaslány na adresu: Ministerstvo kultury, odbor umění, literatury a knihoven, Maltézské náměstí 1, 118 11  Praha 1 – Malá Strana, nebo datovou schránkou na adresu MK nebo osobně doručeny prostřednictvím podatelny MK do 10. 12. 2017 včetně."]
["Za rozhodující se považuje datum odevzdání do poštovní přepravy (resp. datum převzetí podatelnou MK při osobním podání)."]

{"sheet":"List2","index":1,"n_rows":79,"n_cols":17,"rows_kept":79,"cut":false,"hidden":false,"merged":[[0,7,1,7]]}
["Okres",null,"Kraj",null,"Region",null,null,"Okresy podle abecedy","1) materiál","Vážený pan","1) Podpora práce s národnostními menšinami a integrace cizinců",null,"o.s.","Krajská","ano","ADSL"]
["Územní jednotka","LAU1","Územní jednotka","NUTS3","Územní jednotka","NUTS2",null,null,"2) ostatní nákupy","Vážená paní","2) Podpora dostupnosti knih. služeb pro občany se zdravotním postižením",null,"nadace","Městská","ne","ISDN"]
["Benešov",201,"Středočeský kraj","CZ020","Střední Čechy","CZ02",null,"Benešov","3) služby",null,"3) Kulturní, výchovná a vzdělávací činnost",null,"o.p.s.","Obecní",null,"Pevná linka"]
["Beroun",202,"Středočeský kraj","CZ020","Střední Čechy","CZ02",null,"Beroun","4) OON",null,null,null,"s.r.o.","Školní",null,"Kabel"]
["Blansko",641,"Jihomoravský kraj","CZ064","Jihovýchod","CZ06",null,"Blansko","5) ostatní",null,null,null,null,"Vysokoškolská",null,"Optika"]
["Brno-město",642,"Jihomoravský kraj","CZ064","Jihovýchod","CZ06",null,"Brno-město",null,null,null,null,null,"Muzejní",null,"Radiový spoj"]
["Brno-venkov",643,"Jihomoravský kraj","CZ064","Jihovýchod","CZ06",null,"Brno-venkov",null,null,null,null,null,"Jiná",null,null,"Vytáčené spojení"]
["Bruntál",801,"Moravskoslezský kraj","CZ080","Moravskoslezsko","CZ08",null,"Bruntál",null,null,null,null,null,null,null,null,"Jiné"]
["Břeclav",644,"Jihomoravský kraj","CZ064","Jihovýchod","CZ06",null,"Břeclav"]
["Česká Lípa",511,"Liberecký kraj","CZ051","Severovýchod","CZ05",null,"Česká Lípa"]
["České Budějovice",311,"Jihočeský kraj","CZ031","Jihozápad","CZ03",null,"České Budějovice"]
["Český Krumlov",312,"Jihočeský kraj","CZ031","Jihozápad","CZ03",null,"Český Krumlov"]
["Děčín",421,"Ústecký kraj","CZ042","Severozápad","CZ04",null,"Děčín"]
["Domažlice",321,"Plzeňský kraj","CZ032","Jihozápad","CZ03",null,"Domažlice"]
["Frýdek-Místek",802,"Moravskoslezský kraj","CZ080","Moravskoslezsko","CZ08",null,"Frýdek-Místek"]
["Havlíčkův Brod",631,"Kraj Vysočina","CZ063","Jihovýchod","CZ06",null,"Havlíčkův Brod"]
["Hodonín",645,"Jihomoravský kraj","CZ064","Jihovýchod","CZ06",null,"Hodonín"]
["Hradec Králové",521,"Královéhradecký kraj","CZ052","Severovýchod","CZ05",null,"Hradec Králové"]
["Cheb",411,"Karlovarský kraj","CZ041","Severozápad","CZ04",null,"Cheb"]
["Chomutov",422,"Ústecký kraj","CZ042","Severozápad","CZ04",null,"Chomutov"]
["Chrudim",531,"Pardubický kraj","CZ053","Severovýchod","CZ05",null,"Chrudim"]
["Jablonec nad Nisou",512,"Liberecký kraj","CZ051","Severovýchod","CZ05",null,"Jablonec nad Nisou"]
["Jeseník",711,"Olomoucký kraj","CZ071","Střední Morava","CZ07",null,"Jeseník"]
["Jičín",522,"Královéhradecký kraj","CZ052","Severovýchod","CZ05",null,"Jičín"]
["Jihlava",632,"Kraj Vysočina","CZ063","Jihovýchod","CZ06",null,"Jihlava"]
["Jindřichův Hradec",313,"Jihočeský kraj","CZ031","Jihozápad","CZ03",null,"Jindřichův Hradec"]
["Karlovy Vary",412,"Karlovarský kraj","CZ041","Severozápad","CZ04",null,"Karlovy Vary"]
["Karviná",803,"Moravskoslezský kraj","CZ080","Moravskoslezsko","CZ08",null,"Karviná"]
["Kladno",203,"Středočeský kraj","CZ020","Střední Čechy","CZ02",null,"Kladno"]
["Klatovy",322,"Plzeňský kraj","CZ032","Jihozápad","CZ03",null,"Klatovy"]
["Kolín",204,"Středočeský kraj","CZ020","Střední Čechy","CZ02",null,"Kolín"]
["Kroměříž",721,"Zlínský kraj","CZ072","Střední Morava","CZ07",null,"Kroměříž"]
["Kutná Hora",205,"Středočeský kraj","CZ020","Střední Čechy","CZ02",null,"Kutná Hora"]
["Liberec",513,"Liberecký kraj","CZ051","Severovýchod","CZ05",null,"Liberec"]
["Litoměřice",423,"Ústecký kraj","CZ042","Severozápad","CZ04",null,"Litoměřice"]
["Louny",424,"Ústecký kraj","CZ042","Severozápad","CZ04",null,"Louny"]
["Mělník",206,"Středočeský kraj","CZ020","Střední Čechy","CZ02",null,"Mělník"]
["Mladá Boleslav",207,"Středočeský kraj","CZ020","Střední Čechy","CZ02",null,"Mladá Boleslav"]
["Most",425,"Ústecký kraj","CZ042","Severozápad","CZ04",null,"Most"]
["Náchod",523,"Královéhradecký kraj","CZ052","Severovýchod","CZ05",null,"Náchod"]
["Nový Jičín",804,"Moravskoslezský kraj","CZ080","Moravskoslezsko","CZ08",null,"Nový Jičín"]
["Nymburk",208,"Středočeský kraj","CZ020","Střední Čechy","CZ02",null,"Nymburk"]
["Olomouc",712,"Olomoucký kraj","CZ071","Střední Morava","CZ07",null,"Olomouc"]
["Opava",805,"Moravskoslezský kraj","CZ080","Moravskoslezsko","CZ08",null,"Opava"]
["Ostrava-město",806,"Moravskoslezský kraj","CZ080","Moravskoslezsko","CZ08",null,"Ostrava-město"]
["Pardubice",532,"Pardubický kraj","CZ053","Severovýchod","CZ05",null,"Pardubice"]
["Pelhřimov",633,"Kraj Vysočina","CZ063","Jihovýchod","CZ06",null,"Pelhřimov"]
["Písek",314,"Jihočeský kraj","CZ031","Jihozápad","CZ03",null,"Písek"]
["Plzeň-jih",324,"Plzeňský kraj","CZ032","Jihozápad","CZ03",null,"Plzeň-jih"]
["Plzeň-město",323,"Plzeňský kraj","CZ032","Jihozápad","CZ03",null,"Plzeň-město"]
["Plzeň-sever",325,"Plzeňský kraj","CZ032","Jihozápad","CZ03",null,"Plzeň-sever"]
["Praha",100,"Hlavní město Praha","CZ010","Praha","CZ01",null,"Praha"]
["Praha-východ",209,"Středočeský kraj","CZ020","Střední Čechy","CZ02",null,"Praha-východ"]
["Praha-západ","20A","Středočeský kraj","CZ020","Střední Čechy","CZ02",null,"Praha-západ"]
["Prachatice",315,"Jihočeský kraj","CZ031","Jihozápad","CZ03",null,"Prachatice"]
["Prostějov",713,"Olomoucký kraj","CZ071","Střední Morava","CZ07",null,"Prostějov"]
["Přerov",714,"Olomoucký kraj","CZ071","Střední Morava","CZ07",null,"Přerov"]
["Příbram","20B","Středočeský kraj","CZ020","Střední Čechy","CZ02",null,"Příbram"]
["Rakovník","20C","Středočeský kraj","CZ020","Střední Čechy","CZ02",null,"Rakovník"]
["Rokycany",326,"Plzeňský kraj","CZ032","Jihozápad","CZ03",null,"Rokycany"]
["Rychnov nad Kněžnou",524,"Královéhradecký kraj","CZ052","Severovýchod","CZ05",null,"Rychnov nad Kněžnou"]
["Semily",514,"Liberecký kraj","CZ051","Severovýchod","CZ05",null,"Semily"]
["Sokolov",413,"Karlovarský kraj","CZ041","Severozápad","CZ04",null,"Sokolov"]
["Strakonice",316,"Jihočeský kraj","CZ031","Jihozápad","CZ03",null,"Strakonice"]
["Svitavy",533,"Pardubický kraj","CZ053","Severovýchod","CZ05",null,"Svitavy"]
["Šumperk",715,"Olomoucký kraj","CZ071","Střední Morava","CZ07",null,"Šumperk"]
["Tábor",317,"Jihočeský kraj","CZ031","Jihozápad","CZ03",null,"Tábor"]
["Tachov",327,"Plzeňský kraj","CZ032","Jihozápad","CZ03",null,"Tachov"]
["Teplice",426,"Ústecký kraj","CZ042","Severozápad","CZ04",null,"Teplice"]
["Trutnov",525,"Královéhradecký kraj","CZ052","Severovýchod","CZ05",null,"Trutnov"]
["Třebíč",634,"Kraj Vysočina","CZ063","Jihovýchod","CZ06",null,"Třebíč"]
["Uherské Hradiště",722,"Zlínský kraj","CZ072","Střední Morava","CZ07",null,"Uherské Hradiště"]
["Ústí nad Labem",427,"Ústecký kraj","CZ042","Severozápad","CZ04",null,"Ústí nad Labem"]
["Ústí nad Orlicí",534,"Pardubický kraj","CZ053","Severovýchod","CZ05",null,"Ústí nad Orlicí"]
["Vsetín",723,"Zlínský kraj","CZ072","Střední Morava","CZ07",null,"Vsetín"]
["Vyškov",646,"Jihomoravský kraj","CZ064","Jihovýchod","CZ06",null,"Vyškov"]
["Zlín",724,"Zlínský kraj","CZ072","Střední Morava","CZ07",null,"Zlín"]
["Znojmo",647,"Jihomoravský kraj","CZ064","Jihovýchod","CZ06",null,"Znojmo"]
["Žďár nad Sázavou",635,"Kraj Vysočina","CZ063","Jihovýchod","CZ06",null,"Žďár nad Sázavou"]

{"sheet":"List3","index":2,"n_rows":32,"n_cols":10,"rows_kept":32,"cut":false,"hidden":false,"merged":[[0,8,0,9],[0,0,0,1],[0,2,0,3],[0,4,0,5],[0,6,0,7]]}
["1) Materiál",null,"2) Ostatní nákupy",null,"3 Služby",null,"4) Ostatní osobní náklady",null,"5) Ostatní jinde nezařazené"]
["dotace","spoluúčast","dotace","spoluúčast","dotace","spoluúčast","dotace","spoluúčast","dotace","spoluúčast"]
[{"$f":"IF(List1!A108=\"1) materiál\",List1!G108,0)","v":0},{"$f":"IF(List1!A108=\"1) materiál\",List1!H108,0)","v":0},{"$f":"IF(List1!A108=\"2) ostatní nákupy\",List1!G108,0)","v":0},{"$f":"IF(List1!A108=\"2) ostatní nákupy\",List1!H108,0)","v":0},{"$f":"IF(List1!A108=\"3) služby\",List1!G108,0)","v":0},{"$f":"IF(List1!A108=\"3) služby\",List1!H108,0)","v":0},{"$f":"IF(List1!A108=\"4) OON\",List1!G108,0)","v":0},{"$f":"IF(List1!A108=\"4) OON\",List1!H108,0)","v":0},{"$f":"IF(List1!A108=\"5) ostatní\",List1!G108,0)","v":0},{"$f":"IF(List1!A108=\"5) ostatní\",List1!H108,0)","v":0}]
[{"$f":"IF(List1!A110=\"1) materiál\",List1!G110,0)","v":0},{"$f":"IF(List1!A110=\"1) materiál\",List1!H110,0)","v":0},{"$f":"IF(List1!A110=\"2) ostatní nákupy\",List1!G110,0)","v":0},{"$f":"IF(List1!A110=\"2) ostatní nákupy\",List1!H110,0)","v":0},{"$f":"IF(List1!A110=\"3) služby\",List1!G110,0)","v":0},{"$f":"IF(List1!A110=\"3) služby\",List1!H110,0)","v":0},{"$f":"IF(List1!A110=\"4) OON\",List1!G110,0)","v":0},{"$f":"IF(List1!A110=\"4) OON\",List1!H110,0)","v":0},{"$f":"IF(List1!A110=\"5) ostatní\",List1!G110,0)","v":0},{"$f":"IF(List1!A110=\"5) ostatní\",List1!H110,0)","v":0}]
[{"$f":"IF(List1!A112=\"1) materiál\",List1!G112,0)","v":0},{"$f":"IF(List1!A112=\"1) materiál\",List1!H112,0)","v":0},{"$f":"IF(List1!A112=\"2) ostatní nákupy\",List1!G112,0)","v":0},{"$f":"IF(List1!A112=\"2) ostatní nákupy\",List1!H112,0)","v":0},{"$f":"IF(List1!A112=\"3) služby\",List1!G112,0)","v":0},{"$f":"IF(List1!A112=\"3) služby\",List1!H112,0)","v":0},{"$f":"IF(List1!A112=\"4) OON\",List1!G112,0)","v":0},{"$f":"IF(List1!A112=\"4) OON\",List1!H112,0)","v":0},{"$f":"IF(List1!A112=\"5) ostatní\",List1!G112,0)","v":0},{"$f":"IF(List1!A112=\"5) ostatní\",List1!H112,0)","v":0}]
[{"$f":"IF(List1!A114=\"1) materiál\",List1!G114,0)","v":0},{"$f":"IF(List1!A114=\"1) materiál\",List1!H114,0)","v":0},{"$f":"IF(List1!A114=\"2) ostatní nákupy\",List1!G114,0)","v":0},{"$f":"IF(List1!A114=\"2) ostatní nákupy\",List1!H114,0)","v":0},{"$f":"IF(List1!A114=\"3) služby\",List1!G114,0)","v":0},{"$f":"IF(List1!A114=\"3) služby\",List1!H114,0)","v":0},{"$f":"IF(List1!A114=\"4) OON\",List1!G114,0)","v":0},{"$f":"IF(List1!A114=\"4) OON\",List1!H114,0)","v":0},{"$f":"IF(List1!A114=\"5) ostatní\",List1!G114,0)","v":0},{"$f":"IF(List1!A114=\"5) ostatní\",List1!H114,0)","v":0}]
[{"$f":"IF(List1!A116=\"1) materiál\",List1!G116,0)","v":0},{"$f":"IF(List1!A116=\"1) materiál\",List1!H116,0)","v":0},{"$f":"IF(List1!A116=\"2) ostatní nákupy\",List1!G116,0)","v":0},{"$f":"IF(List1!A116=\"2) ostatní nákupy\",List1!H116,0)","v":0},{"$f":"IF(List1!A116=\"3) služby\",List1!G116,0)","v":0},{"$f":"IF(List1!A116=\"3) služby\",List1!H116,0)","v":0},{"$f":"IF(List1!A116=\"4) OON\",List1!G116,0)","v":0},{"$f":"IF(List1!A116=\"4) OON\",List1!H116,0)","v":0},{"$f":"IF(List1!A116=\"5) ostatní\",List1!G116,0)","v":0},{"$f":"IF(List1!A116=\"5) ostatní\",List1!H116,0)","v":0}]
[{"$f":"IF(List1!A118=\"1) materiál\",List1!G118,0)","v":0},{"$f":"IF(List1!A118=\"1) materiál\",List1!H118,0)","v":0},{"$f":"IF(List1!A118=\"2) ostatní nákupy\",List1!G118,0)","v":0},{"$f":"IF(List1!A118=\"2) ostatní nákupy\",List1!H118,0)","v":0},{"$f":"IF(List1!A118=\"3) služby\",List1!G118,0)","v":0},{"$f":"IF(List1!A118=\"3) služby\",List1!H118,0)","v":0},{"$f":"IF(List1!A118=\"4) OON\",List1!G118,0)","v":0},{"$f":"IF(List1!A118=\"4) OON\",List1!H118,0)","v":0},{"$f":"IF(List1!A118=\"5) ostatní\",List1!G118,0)","v":0},{"$f":"IF(List1!A118=\"5) ostatní\",List1!H118,0)","v":0}]
[{"$f":"IF(List1!A120=\"1) materiál\",List1!G120,0)","v":0},{"$f":"IF(List1!A120=\"1) materiál\",List1!H120,0)","v":0},{"$f":"IF(List1!A120=\"2) ostatní nákupy\",List1!G120,0)","v":0},{"$f":"IF(List1!A120=\"2) ostatní nákupy\",List1!H120,0)","v":0},{"$f":"IF(List1!A120=\"3) služby\",List1!G120,0)","v":0},{"$f":"IF(List1!A120=\"3) služby\",List1!H120,0)","v":0},{"$f":"IF(List1!A120=\"4) OON\",List1!G120,0)","v":0},{"$f":"IF(List1!A120=\"4) OON\",List1!H120,0)","v":0},{"$f":"IF(List1!A120=\"5) ostatní\",List1!G120,0)","v":0},{"$f":"IF(List1!A120=\"5) ostatní\",List1!H120,0)","v":0}]
[{"$f":"IF(List1!A121=\"1) materiál\",List1!G121,0)","v":0},{"$f":"IF(List1!A121=\"1) materiál\",List1!H121,0)","v":0},{"$f":"IF(List1!A121=\"2) ostatní nákupy\",List1!G121,0)","v":0},{"$f":"IF(List1!A121=\"2) ostatní nákupy\",List1!H121,0)","v":0},{"$f":"IF(List1!A121=\"3) služby\",List1!G121,0)","v":0},{"$f":"IF(List1!A121=\"3) služby\",List1!H121,0)","v":0},{"$f":"IF(List1!A121=\"4) OON\",List1!G121,0)","v":0},{"$f":"IF(List1!A121=\"4) OON\",List1!H121,0)","v":0},{"$f":"IF(List1!A121=\"5) ostatní\",List1!G121,0)","v":0},{"$f":"IF(List1!A121=\"5) ostatní\",List1!H121,0)","v":0}]
[{"$f":"IF(List1!A122=\"1) materiál\",List1!G122,0)","v":0},{"$f":"IF(List1!A122=\"1) materiál\",List1!H122,0)","v":0},{"$f":"IF(List1!A122=\"2) ostatní nákupy\",List1!G122,0)","v":0},{"$f":"IF(List1!A122=\"2) ostatní nákupy\",List1!H122,0)","v":0},{"$f":"IF(List1!A122=\"3) služby\",List1!G122,0)","v":0},{"$f":"IF(List1!A122=\"3) služby\",List1!H122,0)","v":0},{"$f":"IF(List1!A122=\"4) OON\",List1!G122,0)","v":0},{"$f":"IF(List1!A122=\"4) OON\",List1!H122,0)","v":0},{"$f":"IF(List1!A122=\"5) ostatní\",List1!G122,0)","v":0},{"$f":"IF(List1!A122=\"5) ostatní\",List1!H122,0)","v":0}]
[{"$f":"IF(List1!A123=\"1) materiál\",List1!G123,0)","v":0},{"$f":"IF(List1!A123=\"1) materiál\",List1!H123,0)","v":0},{"$f":"IF(List1!A123=\"2) ostatní nákupy\",List1!G123,0)","v":0},{"$f":"IF(List1!A123=\"2) ostatní nákupy\",List1!H123,0)","v":0},{"$f":"IF(List1!A123=\"3) služby\",List1!G123,0)","v":0},{"$f":"IF(List1!A123=\"3) služby\",List1!H123,0)","v":0},{"$f":"IF(List1!A123=\"4) OON\",List1!G123,0)","v":0},{"$f":"IF(List1!A123=\"4) OON\",List1!H123,0)","v":0},{"$f":"IF(List1!A123=\"5) ostatní\",List1!G123,0)","v":0},{"$f":"IF(List1!A123=\"5) ostatní\",List1!H123,0)","v":0}]
[{"$f":"IF(List1!A124=\"1) materiál\",List1!G124,0)","v":0},{"$f":"IF(List1!A124=\"1) materiál\",List1!H124,0)","v":0},{"$f":"IF(List1!A124=\"2) ostatní nákupy\",List1!G124,0)","v":0},{"$f":"IF(List1!A124=\"2) ostatní nákupy\",List1!H124,0)","v":0},{"$f":"IF(List1!A124=\"3) služby\",List1!G124,0)","v":0},{"$f":"IF(List1!A124=\"3) služby\",List1!H124,0)","v":0},{"$f":"IF(List1!A124=\"4) OON\",List1!G124,0)","v":0},{"$f":"IF(List1!A124=\"4) OON\",List1!H124,0)","v":0},{"$f":"IF(List1!A124=\"5) ostatní\",List1!G124,0)","v":0},{"$f":"IF(List1!A124=\"5) ostatní\",List1!H124,0)","v":0}]
[{"$f":"IF(List1!A125=\"1) materiál\",List1!G125,0)","v":0},{"$f":"IF(List1!A125=\"1) materiál\",List1!H125,0)","v":0},{"$f":"IF(List1!A125=\"2) ostatní nákupy\",List1!G125,0)","v":0},{"$f":"IF(List1!A125=\"2) ostatní nákupy\",List1!H125,0)","v":0},{"$f":"IF(List1!A125=\"3) služby\",List1!G125,0)","v":0},{"$f":"IF(List1!A125=\"3) služby\",List1!H125,0)","v":0},{"$f":"IF(List1!A125=\"4) OON\",List1!G125,0)","v":0},{"$f":"IF(List1!A125=\"4) OON\",List1!H125,0)","v":0},{"$f":"IF(List1!A125=\"5) ostatní\",List1!G125,0)","v":0},{"$f":"IF(List1!A125=\"5) ostatní\",List1!H125,0)","v":0}]
[{"$f":"IF(List1!A126=\"1) materiál\",List1!G126,0)","v":0},{"$f":"IF(List1!A126=\"1) materiál\",List1!H126,0)","v":0},{"$f":"IF(List1!A126=\"2) ostatní nákupy\",List1!G126,0)","v":0},{"$f":"IF(List1!A126=\"2) ostatní nákupy\",List1!H126,0)","v":0},{"$f":"IF(List1!A126=\"3) služby\",List1!G126,0)","v":0},{"$f":"IF(List1!A126=\"3) služby\",List1!H126,0)","v":0},{"$f":"IF(List1!A126=\"4) OON\",List1!G126,0)","v":0},{"$f":"IF(List1!A126=\"4) OON\",List1!H126,0)","v":0},{"$f":"IF(List1!A126=\"5) ostatní\",List1!G126,0)","v":0},{"$f":"IF(List1!A126=\"5) ostatní\",List1!H126,0)","v":0}]
[{"$f":"IF(List1!A127=\"1) materiál\",List1!G127,0)","v":0},{"$f":"IF(List1!A127=\"1) materiál\",List1!H127,0)","v":0},{"$f":"IF(List1!A127=\"2) ostatní nákupy\",List1!G127,0)","v":0},{"$f":"IF(List1!A127=\"2) ostatní nákupy\",List1!H127,0)","v":0},{"$f":"IF(List1!A127=\"3) služby\",List1!G127,0)","v":0},{"$f":"IF(List1!A127=\"3) služby\",List1!H127,0)","v":0},{"$f":"IF(List1!A127=\"4) OON\",List1!G127,0)","v":0},{"$f":"IF(List1!A127=\"4) OON\",List1!H127,0)","v":0},{"$f":"IF(List1!A127=\"5) ostatní\",List1!G127,0)","v":0},{"$f":"IF(List1!A127=\"5) ostatní\",List1!H127,0)","v":0}]
[{"$f":"IF(List1!A128=\"1) materiál\",List1!G128,0)","v":0},{"$f":"IF(List1!A128=\"1) materiál\",List1!H128,0)","v":0},{"$f":"IF(List1!A128=\"2) ostatní nákupy\",List1!G128,0)","v":0},{"$f":"IF(List1!A128=\"2) ostatní nákupy\",List1!H128,0)","v":0},{"$f":"IF(List1!A128=\"3) služby\",List1!G128,0)","v":0},{"$f":"IF(List1!A128=\"3) služby\",List1!H128,0)","v":0},{"$f":"IF(List1!A128=\"4) OON\",List1!G128,0)","v":0},{"$f":"IF(List1!A128=\"4) OON\",List1!H128,0)","v":0},{"$f":"IF(List1!A128=\"5) ostatní\",List1!G128,0)","v":0},{"$f":"IF(List1!A128=\"5) ostatní\",List1!H128,0)","v":0}]
[{"$f":"IF(List1!A129=\"1) materiál\",List1!G129,0)","v":0},{"$f":"IF(List1!A129=\"1) materiál\",List1!H129,0)","v":0},{"$f":"IF(List1!A129=\"2) ostatní nákupy\",List1!G129,0)","v":0},{"$f":"IF(List1!A129=\"2) ostatní nákupy\",List1!H129,0)","v":0},{"$f":"IF(List1!A129=\"3) služby\",List1!G129,0)","v":0},{"$f":"IF(List1!A129=\"3) služby\",List1!H129,0)","v":0},{"$f":"IF(List1!A129=\"4) OON\",List1!G129,0)","v":0},{"$f":"IF(List1!A129=\"4) OON\",List1!H129,0)","v":0},{"$f":"IF(List1!A129=\"5) ostatní\",List1!G129,0)","v":0},{"$f":"IF(List1!A129=\"5) ostatní\",List1!H129,0)","v":0}]
[{"$f":"IF(List1!A130=\"1) materiál\",List1!G130,0)","v":0},{"$f":"IF(List1!A130=\"1) materiál\",List1!H130,0)","v":0},{"$f":"IF(List1!A130=\"2) ostatní nákupy\",List1!G130,0)","v":0},{"$f":"IF(List1!A130=\"2) ostatní nákupy\",List1!H130,0)","v":0},{"$f":"IF(List1!A130=\"3) služby\",List1!G130,0)","v":0},{"$f":"IF(List1!A130=\"3) služby\",List1!H130,0)","v":0},{"$f":"IF(List1!A130=\"4) OON\",List1!G130,0)","v":0},{"$f":"IF(List1!A130=\"4) OON\",List1!H130,0)","v":0},{"$f":"IF(List1!A130=\"5) ostatní\",List1!G130,0)","v":0},{"$f":"IF(List1!A130=\"5) ostatní\",List1!H130,0)","v":0}]
[{"$f":"IF(List1!A131=\"1) materiál\",List1!G131,0)","v":0},{"$f":"IF(List1!A131=\"1) materiál\",List1!H131,0)","v":0},{"$f":"IF(List1!A131=\"2) ostatní nákupy\",List1!G131,0)","v":0},{"$f":"IF(List1!A131=\"2) ostatní nákupy\",List1!H131,0)","v":0},{"$f":"IF(List1!A131=\"3) služby\",List1!G131,0)","v":0},{"$f":"IF(List1!A131=\"3) služby\",List1!H131,0)","v":0},{"$f":"IF(List1!A131=\"4) OON\",List1!G131,0)","v":0},{"$f":"IF(List1!A131=\"4) OON\",List1!H131,0)","v":0},{"$f":"IF(List1!A131=\"5) ostatní\",List1!G131,0)","v":0},{"$f":"IF(List1!A131=\"5) ostatní\",List1!H131,0)","v":0}]
[{"$f":"IF(List1!A132=\"1) materiál\",List1!G132,0)","v":0},{"$f":"IF(List1!A132=\"1) materiál\",List1!H132,0)","v":0},{"$f":"IF(List1!A132=\"2) ostatní nákupy\",List1!G132,0)","v":0},{"$f":"IF(List1!A132=\"2) ostatní nákupy\",List1!H132,0)","v":0},{"$f":"IF(List1!A132=\"3) služby\",List1!G132,0)","v":0},{"$f":"IF(List1!A132=\"3) služby\",List1!H132,0)","v":0},{"$f":"IF(List1!A132=\"4) OON\",List1!G132,0)","v":0},{"$f":"IF(List1!A132=\"4) OON\",List1!H132,0)","v":0},{"$f":"IF(List1!A132=\"5) ostatní\",List1!G132,0)","v":0},{"$f":"IF(List1!A132=\"5) ostatní\",List1!H132,0)","v":0}]
[{"$f":"IF(List1!A133=\"1) materiál\",List1!G133,0)","v":0},{"$f":"IF(List1!A133=\"1) materiál\",List1!H133,0)","v":0},{"$f":"IF(List1!A133=\"2) ostatní nákupy\",List1!G133,0)","v":0},{"$f":"IF(List1!A133=\"2) ostatní nákupy\",List1!H133,0)","v":0},{"$f":"IF(List1!A133=\"3) služby\",List1!G133,0)","v":0},{"$f":"IF(List1!A133=\"3) služby\",List1!H133,0)","v":0},{"$f":"IF(List1!A133=\"4) OON\",List1!G133,0)","v":0},{"$f":"IF(List1!A133=\"4) OON\",List1!H133,0)","v":0},{"$f":"IF(List1!A133=\"5) ostatní\",List1!G133,0)","v":0},{"$f":"IF(List1!A133=\"5) ostatní\",List1!H133,0)","v":0}]
[{"$f":"IF(List1!A134=\"1) materiál\",List1!G134,0)","v":0},{"$f":"IF(List1!A134=\"1) materiál\",List1!H134,0)","v":0},{"$f":"IF(List1!A134=\"2) ostatní nákupy\",List1!G134,0)","v":0},{"$f":"IF(List1!A134=\"2) ostatní nákupy\",List1!H134,0)","v":0},{"$f":"IF(List1!A134=\"3) služby\",List1!G134,0)","v":0},{"$f":"IF(List1!A134=\"3) služby\",List1!H134,0)","v":0},{"$f":"IF(List1!A134=\"4) OON\",List1!G134,0)","v":0},{"$f":"IF(List1!A134=\"4) OON\",List1!H134,0)","v":0},{"$f":"IF(List1!A134=\"5) ostatní\",List1!G134,0)","v":0},{"$f":"IF(List1!A134=\"5) ostatní\",List1!H134,0)","v":0}]
[{"$f":"IF(List1!A135=\"1) materiál\",List1!G135,0)","v":0},{"$f":"IF(List1!A135=\"1) materiál\",List1!H135,0)","v":0},{"$f":"IF(List1!A135=\"2) ostatní nákupy\",List1!G135,0)","v":0},{"$f":"IF(List1!A135=\"2) ostatní nákupy\",List1!H135,0)","v":0},{"$f":"IF(List1!A135=\"3) služby\",List1!G135,0)","v":0},{"$f":"IF(List1!A135=\"3) služby\",List1!H135,0)","v":0},{"$f":"IF(List1!A135=\"4) OON\",List1!G135,0)","v":0},{"$f":"IF(List1!A135=\"4) OON\",List1!H135,0)","v":0},{"$f":"IF(List1!A135=\"5) ostatní\",List1!G135,0)","v":0},{"$f":"IF(List1!A135=\"5) ostatní\",List1!H135,0)","v":0}]
[{"$f":"IF(List1!A136=\"1) materiál\",List1!G136,0)","v":0},{"$f":"IF(List1!A136=\"1) materiál\",List1!H136,0)","v":0},{"$f":"IF(List1!A136=\"2) ostatní nákupy\",List1!G136,0)","v":0},{"$f":"IF(List1!A136=\"2) ostatní nákupy\",List1!H136,0)","v":0},{"$f":"IF(List1!A136=\"3) služby\",List1!G136,0)","v":0},{"$f":"IF(List1!A136=\"3) služby\",List1!H136,0)","v":0},{"$f":"IF(List1!A136=\"4) OON\",List1!G136,0)","v":0},{"$f":"IF(List1!A136=\"4) OON\",List1!H136,0)","v":0},{"$f":"IF(List1!A136=\"5) ostatní\",List1!G136,0)","v":0},{"$f":"IF(List1!A136=\"5) ostatní\",List1!H136,0)","v":0}]
[{"$f":"IF(List1!A137=\"1) materiál\",List1!G137,0)","v":0},{"$f":"IF(List1!A137=\"1) materiál\",List1!H137,0)","v":0},{"$f":"IF(List1!A137=\"2) ostatní nákupy\",List1!G137,0)","v":0},{"$f":"IF(List1!A137=\"2) ostatní nákupy\",List1!H137,0)","v":0},{"$f":"IF(List1!A137=\"3) služby\",List1!G137,0)","v":0},{"$f":"IF(List1!A137=\"3) služby\",List1!H137,0)","v":0},{"$f":"IF(List1!A137=\"4) OON\",List1!G137,0)","v":0},{"$f":"IF(List1!A137=\"4) OON\",List1!H137,0)","v":0},{"$f":"IF(List1!A137=\"5) ostatní\",List1!G137,0)","v":0},{"$f":"IF(List1!A137=\"5) ostatní\",List1!H137,0)","v":0}]
[{"$f":"IF(List1!A138=\"1) materiál\",List1!G138,0)","v":0},{"$f":"IF(List1!A138=\"1) materiál\",List1!H138,0)","v":0},{"$f":"IF(List1!A138=\"2) ostatní nákupy\",List1!G138,0)","v":0},{"$f":"IF(List1!A138=\"2) ostatní nákupy\",List1!H138,0)","v":0},{"$f":"IF(List1!A138=\"3) služby\",List1!G138,0)","v":0},{"$f":"IF(List1!A138=\"3) služby\",List1!H138,0)","v":0},{"$f":"IF(List1!A138=\"4) OON\",List1!G138,0)","v":0},{"$f":"IF(List1!A138=\"4) OON\",List1!H138,0)","v":0},{"$f":"IF(List1!A138=\"5) ostatní\",List1!G138,0)","v":0},{"$f":"IF(List1!A138=\"5) ostatní\",List1!H138,0)","v":0}]
[{"$f":"IF(List1!A139=\"1) materiál\",List1!G139,0)","v":0},{"$f":"IF(List1!A139=\"1) materiál\",List1!H139,0)","v":0},{"$f":"IF(List1!A139=\"2) ostatní nákupy\",List1!G139,0)","v":0},{"$f":"IF(List1!A139=\"2) ostatní nákupy\",List1!H139,0)","v":0},{"$f":"IF(List1!A139=\"3) služby\",List1!G139,0)","v":0},{"$f":"IF(List1!A139=\"3) služby\",List1!H139,0)","v":0},{"$f":"IF(List1!A139=\"4) OON\",List1!G139,0)","v":0},{"$f":"IF(List1!A139=\"4) OON\",List1!H139,0)","v":0},{"$f":"IF(List1!A139=\"5) ostatní\",List1!G139,0)","v":0},{"$f":"IF(List1!A139=\"5) ostatní\",List1!H139,0)","v":0}]
[{"$f":"IF(List1!A140=\"1) materiál\",List1!G140,0)","v":0},{"$f":"IF(List1!A140=\"1) materiál\",List1!H140,0)","v":0},{"$f":"IF(List1!A140=\"2) ostatní nákupy\",List1!G140,0)","v":0},{"$f":"IF(List1!A140=\"2) ostatní nákupy\",List1!H140,0)","v":0},{"$f":"IF(List1!A140=\"3) služby\",List1!G140,0)","v":0},{"$f":"IF(List1!A140=\"3) služby\",List1!H140,0)","v":0},{"$f":"IF(List1!A140=\"4) OON\",List1!G140,0)","v":0},{"$f":"IF(List1!A140=\"4) OON\",List1!H140,0)","v":0},{"$f":"IF(List1!A140=\"5) ostatní\",List1!G140,0)","v":0},{"$f":"IF(List1!A140=\"5) ostatní\",List1!H140,0)","v":0}]
[{"$f":"IF(List1!A141=\"1) materiál\",List1!G141,0)","v":0},{"$f":"IF(List1!A141=\"1) materiál\",List1!H141,0)","v":0},{"$f":"IF(List1!A141=\"2) ostatní nákupy\",List1!G141,0)","v":0},{"$f":"IF(List1!A141=\"2) ostatní nákupy\",List1!H141,0)","v":0},{"$f":"IF(List1!A141=\"3) služby\",List1!G141,0)","v":0},{"$f":"IF(List1!A141=\"3) služby\",List1!H141,0)","v":0},{"$f":"IF(List1!A141=\"4) OON\",List1!G141,0)","v":0},{"$f":"IF(List1!A141=\"4) OON\",List1!H141,0)","v":0},{"$f":"IF(List1!A141=\"5) ostatní\",List1!G141,0)","v":0},{"$f":"IF(List1!A141=\"5) ostatní\",List1!H141,0)","v":0}]
[{"$f":"IF(List1!A142=\"1) materiál\",List1!G142,0)","v":0},{"$f":"IF(List1!A142=\"1) materiál\",List1!H142,0)","v":0},{"$f":"IF(List1!A142=\"2) ostatní nákupy\",List1!G142,0)","v":0},{"$f":"IF(List1!A142=\"2) ostatní nákupy\",List1!H142,0)","v":0},{"$f":"IF(List1!A142=\"3) služby\",List1!G142,0)","v":0},{"$f":"IF(List1!A142=\"3) služby\",List1!H142,0)","v":0},{"$f":"IF(List1!A142=\"4) OON\",List1!G142,0)","v":0},{"$f":"IF(List1!A142=\"4) OON\",List1!H142,0)","v":0},{"$f":"IF(List1!A142=\"5) ostatní\",List1!G142,0)","v":0},{"$f":"IF(List1!A142=\"5) ostatní\",List1!H142,0)","v":0}]
[{"$f":"SUM(A3:A31)","v":0},0,0,0,0,0,0,0,0,0]